[Event "November 21 Early 2023"]
[Site "https://www.chess.com"]
[Date "2023.11.21"]
[Round "10"]
[White "Demchenko, Anton"]
[Black "Samunenkov, Ihor"]
[Result "1-0"]
[Board "25"]
[TimeControl "180+1"]
[WhiteFideId "4160258"]
[BlackFideId "14187086"]
[WhiteElo "2545"]
[BlackElo "2473"]
[WhiteTeam "SLO"]
[BlackTeam "UKR"]
[WhiteClock "0:00:05"]
[BlackClock "0:00:01"]

1. e4 {[%clk 0:03:00]}  c6 {[%clk 0:02:59]} 2. d4 {[%clk 0:02:58]}  d5 {[%clk 0:02:59]} 3. e5 {[%clk 0:02:59]}  Bf5 {[%clk 0:02:58]} 4. Bd3 {[%clk 0:02:59]}  Bxd3 {[%clk 0:02:56]} 5. Qxd3 {[%clk 0:03:00]}  e6 {[%clk 0:02:55]} 6. c3 {[%clk 0:03:01]}  c5 {[%clk 0:02:54]} 7. Ne2 {[%clk 0:03:02]}  Nc6 {[%clk 0:02:54]} 8. O-O {[%clk 0:03:03]}  Qb6 {[%clk 0:02:47]} 9. a3 {[%clk 0:02:58]}  Nge7 {[%clk 0:02:24]} 10. Nd2 {[%clk 0:02:54]}  Nf5 {[%clk 0:02:19]} 11. Nf3 {[%clk 0:02:54]}  h5 {[%clk 0:02:03]} 12. b4 {[%clk 0:02:53]}  cxd4 {[%clk 0:02:02]} 13. cxd4 {[%clk 0:02:54]}  Be7 {[%clk 0:02:01]} 14. Rd1 {[%clk 0:02:50]}  Qd8 {[%clk 0:01:52]} 15. Ng3 {[%clk 0:02:44]}  Nxg3 {[%clk 0:01:40]} 16. fxg3 {[%clk 0:02:38]}  O-O {[%clk 0:01:39]} 17. h4 {[%clk 0:02:32]}  f6 {[%clk 0:01:33]} 18. exf6 {[%clk 0:02:26]}  Bxf6 {[%clk 0:01:32]} 19. Bf4 {[%clk 0:02:20]}  Qd7 {[%clk 0:01:20]} 20. Qe3 {[%clk 0:02:07]}  Ne7 {[%clk 0:01:13]} 21. Ra2 {[%clk 0:02:00]}  Nf5 {[%clk 0:01:12]} 22. Qe1 {[%clk 0:02:00]}  Rac8 {[%clk 0:01:09]} 23. Re2 {[%clk 0:02:01]}  Rfe8 {[%clk 0:01:08]} 24. Be5 {[%clk 0:02:02]}  Qf7 {[%clk 0:01:01]} 25. Kh2 {[%clk 0:01:46]}  Kh8 {[%clk 0:00:59]} 26. Rd3 {[%clk 0:01:45]}  Nh6 {[%clk 0:00:55]} 27. Bf4 {[%clk 0:01:40]}  Ng4+ {[%clk 0:00:54]} 28. Kh1 {[%clk 0:01:39]}  Qg6 {[%clk 0:00:53]} 29. Rd1 {[%clk 0:01:34]}  Qf5 {[%clk 0:00:52]} 30. Qd2 {[%clk 0:01:24]}  a6 {[%clk 0:00:47]} 31. Rf1 {[%clk 0:01:08]}  Rc6 {[%clk 0:00:45]} 32. Be5 {[%clk 0:00:57]}  Rec8 {[%clk 0:00:38]} 33. Bxf6 {[%clk 0:00:57]}  gxf6 {[%clk 0:00:38]} 34. Nh2 {[%clk 0:00:48]}  Rc2 {[%clk 0:00:19]} 35. Rxf5 {[%clk 0:00:45]}  Rxd2 {[%clk 0:00:17]} 36. Rxh5+ {[%clk 0:00:43]}  Kg7 {[%clk 0:00:16]} 37. Re1 {[%clk 0:00:21]}  Re2 {[%clk 0:00:09]} 38. Rf1 {[%clk 0:00:16]}  Kg6 {[%clk 0:00:09]} 39. Nxg4 {[%clk 0:00:15]}  Kxh5 {[%clk 0:00:10]} 40. Nxf6+ {[%clk 0:00:16]}  Kg6 {[%clk 0:00:10]} 41. Ng4 {[%clk 0:00:16]}  Rcc2 {[%clk 0:00:08]} 42. Ne5+ {[%clk 0:00:14]}  Kg7 {[%clk 0:00:08]} 43. Kh2 {[%clk 0:00:11]}  Rxg2+ {[%clk 0:00:08]} 44. Kh3 {[%clk 0:00:12]}  Rgf2 {[%clk 0:00:08]} 45. Re1 {[%clk 0:00:12]}  Rcd2 {[%clk 0:00:05]} 46. Nd7 {[%clk 0:00:12]}  Rfe2 {[%clk 0:00:04]} 47. Rc1 {[%clk 0:00:11]}  Rxd4 {[%clk 0:00:03]} 48. Rc7 {[%clk 0:00:11]}  Kg6 {[%clk 0:00:03]} 49. Nf8+ {[%clk 0:00:07]}  Kf5 {[%clk 0:00:03]} 50. Rf7+ {[%clk 0:00:07]}  Ke5 {[%clk 0:00:03]} 51. Rxb7 {[%clk 0:00:07]}  Rdd2 {[%clk 0:00:02]} 52. Kg4 {[%clk 0:00:05]}  d4 {[%clk 0:00:02]} 53. b5 {[%clk 0:00:03]}  axb5 {[%clk 0:00:02]} 54. Rxb5+ {[%clk 0:00:04]}  Kd6 {[%clk 0:00:02]} 55. Rb6+ {[%clk 0:00:05]}  Kd5 {[%clk 0:00:02]} 56. Rb5+ {[%clk 0:00:04]}  Kc4 {[%clk 0:00:03]} 57. Rb8 {[%clk 0:00:03]}  e5 {[%clk 0:00:03]} 58. Rc8+ {[%clk 0:00:03]}  Kd3 {[%clk 0:00:03]} 59. h5 {[%clk 0:00:04]}  Rh2 {[%clk 0:00:03]} 60. Ne6 {[%clk 0:00:03]}  Ke2 {[%clk 0:00:03]} 61. Re8 {[%clk 0:00:03]}  e4 {[%clk 0:00:02]} 62. Nf4+ {[%clk 0:00:04]}  Ke3 {[%clk 0:00:03]} 63. Nd5+ {[%clk 0:00:04]}  Kd3 {[%clk 0:00:03]} 64. Nf4+ {[%clk 0:00:05]}  Ke3 {[%clk 0:00:03]} 65. Nd5+ {[%clk 0:00:05]}  Kd3 {[%clk 0:00:02]} 66. Nf4+ {[%clk 0:00:04]}  Kc2 {[%clk 0:00:02]} 67. Rxe4 {[%clk 0:00:04]}  d3 {[%clk 0:00:03]} 68. Rd4 {[%clk 0:00:03]}  Kc3 {[%clk 0:00:01]} 69. Rd6 {[%clk 0:00:04]}  Kc2 {[%clk 0:00:01]} 70. h6 {[%clk 0:00:04]}  Rd1 {[%clk 0:00:01]} 71. Rd7 {[%clk 0:00:05]}  d2 {[%clk 0:00:01]} 72. Rc7+ {[%clk 0:00:05]}  Kb2 {[%clk 0:00:01]} 73. h7 {[%clk 0:00:05]}  Rdh1 {[%clk 0:00:01]} 74. Rb7+ {[%clk 0:00:06]}  Kxa3 {[%clk 0:00:01]} 75. Ra7+ {[%clk 0:00:06]}  Kb4 {[%clk 0:00:02]} 76. Nd5+ {[%clk 0:00:06]}  Kc5 {[%clk 0:00:02]} 77. Ne3 {[%clk 0:00:06]}  d1=Q+ {[%clk 0:00:02]} 78. Nxd1 {[%clk 0:00:06]}  Rxd1 {[%clk 0:00:03]} 79. Kg5 {[%clk 0:00:07]}  Rdh1 {[%clk 0:00:02]} 80. Kg6 {[%clk 0:00:07]}  Rh6+ {[%clk 0:00:02]} 81. Kf5 {[%clk 0:00:07]}  R1h5+ {[%clk 0:00:01]} 82. Kg4 {[%clk 0:00:07]}  Rxh7 {[%clk 0:00:01]} 83. Ra5+ {[%clk 0:00:08]}  Kd4 {[%clk 0:00:02]} 84. Rxh5 {[%clk 0:00:09]}  Rg7+ {[%clk 0:00:02]} 85. Rg5 {[%clk 0:00:09]}  Ra7 {[%clk 0:00:01]} 86. Rf5 {[%clk 0:00:10]}  Rg7+ {[%clk 0:00:01]} 87. Kf4 {[%clk 0:00:10]}  Rg8 {[%clk 0:00:01]} 88. g4 {[%clk 0:00:11]}  Rg7 {[%clk 0:00:02]} 89. Rf8 {[%clk 0:00:11]}  Kd5 {[%clk 0:00:01]} 90. Kf5 {[%clk 0:00:12]}  Kd6 {[%clk 0:00:02]} 91. g5 {[%clk 0:00:06]}  Ke7 {[%clk 0:00:02]} 92. Rf6 {[%clk 0:00:06]}  Rg8 {[%clk 0:00:02]} 93. g6 {[%clk 0:00:05]}  Rf8 {[%clk 0:00:02]} 94. Rxf8 {[%clk 0:00:04]}  Kxf8 {[%clk 0:00:02]} 95. Kf6 {[%clk 0:00:04]}  Kg8 {[%clk 0:00:01]} 96. g7 {[%clk 0:00:05]} 1-0

[Event "November 21 Early 2023"]
[Site "https://www.chess.com"]
[Date "2023.11.21"]
[Round "10"]
[White "Tatarinov, Dmitry"]
[Black "Ashraf, Artin"]
[Result "1/2-1/2"]
[Board "27"]
[TimeControl "180+1"]
[WhiteFideId "24160067"]
[BlackFideId "22514805"]
[WhiteElo "2344"]
[BlackElo "2235"]
[WhiteTeam "RUS"]
[BlackTeam "IRI"]
[WhiteClock "0:00:09"]
[BlackClock "0:00:06"]

1. d4 {[%clk 0:02:47]}  Nf6 {[%clk 0:02:58]} 2. c4 {[%clk 0:02:48]}  g6 {[%clk 0:02:59]} 3. Nf3 {[%clk 0:02:48]}  Bg7 {[%clk 0:02:59]} 4. g3 {[%clk 0:02:48]}  O-O {[%clk 0:02:58]} 5. Bg2 {[%clk 0:02:49]}  d6 {[%clk 0:02:58]} 6. O-O {[%clk 0:02:50]}  Nc6 {[%clk 0:02:58]} 7. Nc3 {[%clk 0:02:50]}  a6 {[%clk 0:02:58]} 8. e4 {[%clk 0:02:44]}  Bg4 {[%clk 0:02:36]} 9. Be3 {[%clk 0:02:38]}  Nd7 {[%clk 0:02:35]} 10. Qd2 {[%clk 0:02:26]}  e5 {[%clk 0:02:22]} 11. dxe5 {[%clk 0:02:12]}  Ndxe5 {[%clk 0:01:58]} 12. Nxe5 {[%clk 0:01:40]}  Nxe5 {[%clk 0:01:54]} 13. b3 {[%clk 0:01:38]}  Nf3+ {[%clk 0:01:31]} 14. Bxf3 {[%clk 0:01:38]}  Bxf3 {[%clk 0:01:32]} 15. Bd4 {[%clk 0:01:39]}  Qd7 {[%clk 0:01:17]} 16. Qe3 {[%clk 0:01:28]}  Bxd4 {[%clk 0:01:16]} 17. Qxf3 {[%clk 0:01:28]}  Rfe8 {[%clk 0:01:15]} 18. Rac1 {[%clk 0:01:22]}  c6 {[%clk 0:01:08]} 19. Rfe1 {[%clk 0:01:20]}  Qc7 {[%clk 0:00:59]} 20. Qd3 {[%clk 0:01:02]}  Bc5 {[%clk 0:00:55]} 21. Kg2 {[%clk 0:01:01]}  Qa5 {[%clk 0:00:50]} 22. Re2 {[%clk 0:01:02]}  b5 {[%clk 0:00:49]} 23. h4 {[%clk 0:01:01]}  h5 {[%clk 0:00:46]} 24. e5 {[%clk 0:00:57]}  b4 {[%clk 0:00:38]} 25. Ne4 {[%clk 0:00:53]}  Rxe5 {[%clk 0:00:37]} 26. Rce1 {[%clk 0:00:44]}  Kg7 {[%clk 0:00:28]} 27. Nxd6 {[%clk 0:00:42]}  Rxe2 {[%clk 0:00:25]} 28. Rxe2 {[%clk 0:00:41]}  Rd8 {[%clk 0:00:15]} 29. Re5 {[%clk 0:00:19]}  Qb6 {[%clk 0:00:08]} 30. Rxc5 {[%clk 0:00:09]}  Qxc5 {[%clk 0:00:06]} 31. Nf5+ {[%clk 0:00:09]}  Qxf5 {[%clk 0:00:06]} 32. Qxd8 {[%clk 0:00:10]}  c5 {[%clk 0:00:04]} 33. Qd6 {[%clk 0:00:09]}  Qe4+ {[%clk 0:00:04]} 34. Kh2 {[%clk 0:00:09]}  Qf5 {[%clk 0:00:05]} 35. Kg2 {[%clk 0:00:09]}  a5 {[%clk 0:00:05]} 36. Qa6 {[%clk 0:00:08]}  Qe4+ {[%clk 0:00:05]} 37. Kh2 {[%clk 0:00:08]}  Qf3 {[%clk 0:00:06]} 38. Kg1 {[%clk 0:00:08]}  Qd1+ {[%clk 0:00:06]} 39. Kg2 {[%clk 0:00:09]}  Qc2 {[%clk 0:00:04]} 40. Qxa5 {[%clk 0:00:07]}  Qe4+ {[%clk 0:00:04]} 41. Kh2 {[%clk 0:00:07]}  Qd4 {[%clk 0:00:04]} 42. Kg1 {[%clk 0:00:07]}  Qd1+ {[%clk 0:00:04]} 43. Kg2 {[%clk 0:00:07]}  Qd4 {[%clk 0:00:04]} 44. Qa8 {[%clk 0:00:07]}  Qb2 {[%clk 0:00:04]} 45. Qd5 {[%clk 0:00:06]}  Qxa2 {[%clk 0:00:04]} 46. Qe5+ {[%clk 0:00:07]}  Kh7 {[%clk 0:00:04]} 47. Qf6 {[%clk 0:00:06]}  Qa8+ {[%clk 0:00:03]} 48. Qf3 {[%clk 0:00:06]}  Qe8 {[%clk 0:00:02]} 49. Qd5 {[%clk 0:00:06]}  Qe7 {[%clk 0:00:03]} 50. Kf3 {[%clk 0:00:06]}  Kg7 {[%clk 0:00:03]} 51. Qe4 {[%clk 0:00:06]}  Qf6+ {[%clk 0:00:03]} 52. Kg2 {[%clk 0:00:04]}  Qc3 {[%clk 0:00:04]} 53. Qd5 {[%clk 0:00:04]}  Qxb3 {[%clk 0:00:04]} 54. Qe5+ {[%clk 0:00:04]}  Kh7 {[%clk 0:00:04]} 55. Qxc5 {[%clk 0:00:05]}  Qc3 {[%clk 0:00:05]} 56. Qd5 {[%clk 0:00:06]}  Kg7 {[%clk 0:00:03]} 57. c5 {[%clk 0:00:06]}  b3 {[%clk 0:00:03]} 58. c6 {[%clk 0:00:07]}  b2 {[%clk 0:00:04]} 59. Qe4 {[%clk 0:00:07]}  Qc1 {[%clk 0:00:02]} 60. Qe5+ {[%clk 0:00:07]}  Kh7 {[%clk 0:00:02]} 61. Qd5 {[%clk 0:00:07]}  b1=Q {[%clk 0:00:03]} 62. Qxf7+ {[%clk 0:00:07]}  Kh8 {[%clk 0:00:04]} 63. Qf8+ {[%clk 0:00:08]}  Kh7 {[%clk 0:00:05]} 64. Qf7+ {[%clk 0:00:08]}  Kh6 {[%clk 0:00:06]} 65. Qf8+ {[%clk 0:00:09]}  Kh7 {[%clk 0:00:06]} 66. Qf7+ {[%clk 0:00:09]} 1/2-1/2

[Event "November 21 Early 2023"]
[Site "https://www.chess.com"]
[Date "2023.11.21"]
[Round "10"]
[White "Ter-Sahakyan, Samvel"]
[Black "Mohammad Fahad, Rahman"]
[Result "1-0"]
[Board "28"]
[TimeControl "180+1"]
[WhiteFideId "13302531"]
[BlackFideId "10207791"]
[WhiteElo "2556"]
[BlackElo "2339"]
[WhiteTeam "ARM"]
[BlackTeam "BAN"]
[WhiteClock "0:02:37"]
[BlackClock "0:01:49"]

1. d4 {[%clk 0:03:00]}  d5 {[%clk 0:02:40]} 2. c4 {[%clk 0:02:59]}  e6 {[%clk 0:02:40]} 3. Nf3 {[%clk 0:02:59]}  Nf6 {[%clk 0:02:41]} 4. g3 {[%clk 0:03:00]}  Bb4+ {[%clk 0:02:40]} 5. Nbd2 {[%clk 0:02:59]}  dxc4 {[%clk 0:02:39]} 6. Bg2 {[%clk 0:03:00]}  O-O {[%clk 0:02:38]} 7. Qc2 {[%clk 0:02:59]}  b5 {[%clk 0:02:36]} 8. a3 {[%clk 0:02:58]}  Be7 {[%clk 0:02:26]} 9. a4 {[%clk 0:02:48]}  c6 {[%clk 0:02:18]} 10. axb5 {[%clk 0:02:48]}  cxb5 {[%clk 0:02:18]} 11. Ng5 {[%clk 0:02:47]}  h6 {[%clk 0:02:03]} 12. h4 {[%clk 0:02:41]}  Qxd4 {[%clk 0:01:50]} 13. Bxa8 {[%clk 0:02:39]}  Ng4 {[%clk 0:01:49]} 14. Qh7# {[%clk 0:02:37]} 1-0

[Event "November 21 Early 2023"]
[Site "https://www.chess.com"]
[Date "2023.11.21"]
[Round "10"]
[White "Pourramezanali, Amirreza"]
[Black "Taher, Yoseph Theolifus"]
[Result "1-0"]
[Board "30"]
[TimeControl "180+1"]
[WhiteFideId "12511412"]
[BlackFideId "7105347"]
[WhiteElo "2302"]
[BlackElo "2352"]
[WhiteTeam "IRI"]
[BlackTeam "INA"]
[WhiteClock "0:00:03"]
[BlackClock "0:00:18"]

1. e4 {[%clk 0:03:00]}  c5 {[%clk 0:02:50]} 2. c3 {[%clk 0:03:00]}  Nf6 {[%clk 0:02:48]} 3. e5 {[%clk 0:03:00]}  Nd5 {[%clk 0:02:48]} 4. d4 {[%clk 0:03:01]}  cxd4 {[%clk 0:02:49]} 5. cxd4 {[%clk 0:03:01]}  g6 {[%clk 0:02:50]} 6. Nc3 {[%clk 0:02:59]}  Nxc3 {[%clk 0:02:50]} 7. bxc3 {[%clk 0:02:59]}  Bg7 {[%clk 0:02:51]} 8. Bd3 {[%clk 0:02:59]}  O-O {[%clk 0:02:51]} 9. f4 {[%clk 0:02:56]}  d6 {[%clk 0:02:48]} 10. Nf3 {[%clk 0:02:56]}  Qc7 {[%clk 0:02:48]} 11. Bd2 {[%clk 0:02:55]}  Be6 {[%clk 0:02:37]} 12. O-O {[%clk 0:02:52]}  Bc4 {[%clk 0:02:36]} 13. Qe2 {[%clk 0:02:49]}  Bxd3 {[%clk 0:02:35]} 14. Qxd3 {[%clk 0:02:50]}  Nc6 {[%clk 0:02:36]} 15. Rab1 {[%clk 0:02:33]}  b6 {[%clk 0:02:34]} 16. Ng5 {[%clk 0:02:14]}  h6 {[%clk 0:02:32]} 17. Ne4 {[%clk 0:02:10]}  d5 {[%clk 0:02:29]} 18. Ng3 {[%clk 0:02:10]}  e6 {[%clk 0:02:29]} 19. Ne2 {[%clk 0:02:00]}  Rac8 {[%clk 0:02:24]} 20. g4 {[%clk 0:02:00]}  f5 {[%clk 0:02:24]} 21. gxf5 {[%clk 0:01:53]}  gxf5 {[%clk 0:02:18]} 22. Kh1 {[%clk 0:01:53]}  Kh7 {[%clk 0:02:18]} 23. Rg1 {[%clk 0:01:53]}  Qf7 {[%clk 0:02:19]} 24. Ng3 {[%clk 0:01:53]}  Rg8 {[%clk 0:02:18]} 25. Qf3 {[%clk 0:01:53]}  Bh8 {[%clk 0:02:18]} 26. Nh5 {[%clk 0:01:49]}  Ne7 {[%clk 0:02:18]} 27. Rg3 {[%clk 0:01:42]}  Rxg3 {[%clk 0:02:17]} 28. hxg3 {[%clk 0:01:43]}  Rg8 {[%clk 0:02:12]} 29. Kg2 {[%clk 0:01:40]}  Rg6 {[%clk 0:02:10]} 30. Rh1 {[%clk 0:01:39]}  Qe8 {[%clk 0:02:09]} 31. Qd3 {[%clk 0:01:34]}  Qa4 {[%clk 0:02:07]} 32. Qb1 {[%clk 0:01:32]}  Nc6 {[%clk 0:01:54]} 33. Kf2 {[%clk 0:01:24]}  Bg7 {[%clk 0:01:49]} 34. Rg1 {[%clk 0:01:23]}  Rg4 {[%clk 0:01:38]} 35. Re1 {[%clk 0:01:06]}  Kg6 {[%clk 0:01:33]} 36. Rh1 {[%clk 0:00:53]}  Kf7 {[%clk 0:01:22]} 37. Rh4 {[%clk 0:00:46]}  Rg6 {[%clk 0:01:21]} 38. g4 {[%clk 0:00:41]}  Ne7 {[%clk 0:01:21]} 39. Ng3 {[%clk 0:00:40]}  fxg4 {[%clk 0:01:13]} 40. f5 {[%clk 0:00:35]}  exf5 {[%clk 0:01:14]} 41. Nxf5 {[%clk 0:00:35]}  Qd7 {[%clk 0:01:14]} 42. Nxe7 {[%clk 0:00:27]}  Qxe7 {[%clk 0:01:15]} 43. Qf5+ {[%clk 0:00:21]}  Kg8 {[%clk 0:01:16]} 44. Kg3 {[%clk 0:00:17]}  Rc6 {[%clk 0:01:05]} 45. Rxg4 {[%clk 0:00:17]}  Qf7 {[%clk 0:01:06]} 46. Qxf7+ {[%clk 0:00:14]}  Kxf7 {[%clk 0:01:06]} 47. Kf4 {[%clk 0:00:14]}  Rg6 {[%clk 0:01:03]} 48. Rh4 {[%clk 0:00:08]}  Rg2 {[%clk 0:01:02]} 49. Be3 {[%clk 0:00:06]}  Rxa2 {[%clk 0:00:53]} 50. Kf5 {[%clk 0:00:06]}  Ra1 {[%clk 0:00:54]} 51. Bxh6 {[%clk 0:00:04]}  Rf1+ {[%clk 0:00:52]} 52. Bf4 {[%clk 0:00:04]}  a5 {[%clk 0:00:51]} 53. e6+ {[%clk 0:00:04]}  Kf8 {[%clk 0:00:45]} 54. Rh7 {[%clk 0:00:04]}  Re1 {[%clk 0:00:38]} 55. Bd6+ {[%clk 0:00:04]}  Kg8 {[%clk 0:00:38]} 56. Rh4 {[%clk 0:00:03]}  Rf1+ {[%clk 0:00:34]} 57. Rf4 {[%clk 0:00:03]}  Rxf4+ {[%clk 0:00:30]} 58. Kxf4 {[%clk 0:00:04]}  a4 {[%clk 0:00:30]} 59. Kf5 {[%clk 0:00:04]}  b5 {[%clk 0:00:30]} 60. Kg6 {[%clk 0:00:04]}  Bf8 {[%clk 0:00:21]} 61. e7 {[%clk 0:00:04]}  Bxe7 {[%clk 0:00:21]} 62. Bxe7 {[%clk 0:00:05]}  a3 {[%clk 0:00:18]} 63. Bxa3 {[%clk 0:00:03]} 1-0

[Event "November 21 Early 2023"]
[Site "https://www.chess.com"]
[Date "2023.11.21"]
[Round "10"]
[White "Ahmad, Khagan"]
[Black "Licznerski, Lukasz"]
[Result "0-1"]
[Board "31"]
[TimeControl "180+1"]
[WhiteFideId "13431552"]
[BlackFideId "1179250"]
[WhiteElo "2160"]
[BlackElo "2436"]
[WhiteTeam "AZE"]
[BlackTeam "POL"]
[WhiteClock "0:00:05"]
[BlackClock "0:00:29"]

1. Nf3 {[%clk 0:02:35]}  d5 {[%clk 0:02:58]} 2. d4 {[%clk 0:02:34]}  Nf6 {[%clk 0:02:55]} 3. c4 {[%clk 0:02:33]}  c6 {[%clk 0:02:55]} 4. Nc3 {[%clk 0:02:28]}  Bf5 {[%clk 0:02:54]} 5. cxd5 {[%clk 0:02:27]}  cxd5 {[%clk 0:02:54]} 6. Qb3 {[%clk 0:02:27]}  Qb6 {[%clk 0:02:53]} 7. Nxd5 {[%clk 0:02:15]}  Nxd5 {[%clk 0:02:52]} 8. Qxd5 {[%clk 0:02:15]}  e6 {[%clk 0:02:53]} 9. Qb3 {[%clk 0:02:11]}  Qxb3 {[%clk 0:02:52]} 10. axb3 {[%clk 0:02:12]}  Nc6 {[%clk 0:02:53]} 11. Bd2 {[%clk 0:02:12]}  Nb4 {[%clk 0:02:50]} 12. Rc1 {[%clk 0:02:10]}  Bd6 {[%clk 0:02:45]} 13. g3 {[%clk 0:02:01]}  Bc2 {[%clk 0:02:35]} 14. Bg2 {[%clk 0:01:52]}  Bxb3 {[%clk 0:02:35]} 15. O-O {[%clk 0:01:52]}  Bd5 {[%clk 0:02:30]} 16. Rfe1 {[%clk 0:01:42]}  Be4 {[%clk 0:02:28]} 17. Ne5 {[%clk 0:01:26]}  Bxg2 {[%clk 0:02:27]} 18. Kxg2 {[%clk 0:01:27]}  f6 {[%clk 0:01:53]} 19. Nc4 {[%clk 0:01:12]}  Be7 {[%clk 0:01:53]} 20. Bxb4 {[%clk 0:01:07]}  Bxb4 {[%clk 0:01:53]} 21. Red1 {[%clk 0:01:07]}  Ke7 {[%clk 0:01:42]} 22. e4 {[%clk 0:01:02]}  Rhd8 {[%clk 0:01:37]} 23. d5 {[%clk 0:01:01]}  exd5 {[%clk 0:01:34]} 24. exd5 {[%clk 0:01:01]}  Rac8 {[%clk 0:01:26]} 25. Ne3 {[%clk 0:00:59]}  g6 {[%clk 0:01:23]} 26. h4 {[%clk 0:00:43]}  Rxc1 {[%clk 0:00:56]} 27. Rxc1 {[%clk 0:00:43]}  Bd2 {[%clk 0:00:57]} 28. Rc7+ {[%clk 0:00:42]}  Rd7 {[%clk 0:00:57]} 29. Rxd7+ {[%clk 0:00:42]}  Kxd7 {[%clk 0:00:57]} 30. Nc4 {[%clk 0:00:43]}  Bc1 {[%clk 0:00:51]} 31. b3 {[%clk 0:00:25]}  b5 {[%clk 0:00:45]} 32. Na5 {[%clk 0:00:22]}  Kd6 {[%clk 0:00:45]} 33. Kf3 {[%clk 0:00:13]}  Kxd5 {[%clk 0:00:43]} 34. Ke2 {[%clk 0:00:13]}  Ba3 {[%clk 0:00:42]} 35. Kd3 {[%clk 0:00:12]}  Bb4 {[%clk 0:00:42]} 36. Nb7 {[%clk 0:00:13]}  Kc6 {[%clk 0:00:31]} 37. Nd8+ {[%clk 0:00:12]}  Kd7 {[%clk 0:00:31]} 38. Nf7 {[%clk 0:00:12]}  Bf8 {[%clk 0:00:32]} 39. h5 {[%clk 0:00:12]}  gxh5 {[%clk 0:00:29]} 40. Ke4 {[%clk 0:00:05]}  Ke7 {[%clk 0:00:29]} 0-1

[Event "November 21 Early 2023"]
[Site "https://www.chess.com"]
[Date "2023.11.21"]
[Round "10"]
[White "Mikhailovsky, Vladimir"]
[Black "Arhan_Anand"]
[Result "1-0"]
[Board "32"]
[TimeControl "180+1"]
[WhiteFideId "34105414"]
[WhiteElo "2257"]
[BlackElo "2659"]
[WhiteTeam "RUS"]
[WhiteClock "0:00:09"]
[BlackClock "0:01:13"]

1. d4 {[%clk 0:03:00]}  d5 {[%clk 0:02:56]} 2. c4 {[%clk 0:03:00]}  c6 {[%clk 0:02:56]} 3. Nf3 {[%clk 0:03:01]}  Nf6 {[%clk 0:02:56]} 4. Nbd2 {[%clk 0:03:01]}  g6 {[%clk 0:02:50]} 5. e3 {[%clk 0:03:01]}  Bg7 {[%clk 0:02:50]} 6. Be2 {[%clk 0:03:01]}  O-O {[%clk 0:02:50]} 7. O-O {[%clk 0:03:02]}  Nbd7 {[%clk 0:02:49]} 8. b4 {[%clk 0:03:02]}  Re8 {[%clk 0:02:48]} 9. b5 {[%clk 0:03:01]}  cxb5 {[%clk 0:02:47]} 10. cxb5 {[%clk 0:02:49]}  e5 {[%clk 0:02:37]} 11. dxe5 {[%clk 0:02:49]}  Ng4 {[%clk 0:02:36]} 12. Bb2 {[%clk 0:02:48]}  Ngxe5 {[%clk 0:02:35]} 13. Nxe5 {[%clk 0:02:38]}  Nxe5 {[%clk 0:02:36]} 14. Qb3 {[%clk 0:02:38]}  Be6 {[%clk 0:02:29]} 15. Bd4 {[%clk 0:02:36]}  Nc4 {[%clk 0:02:27]} 16. Nxc4 {[%clk 0:01:24]}  dxc4 {[%clk 0:02:28]} 17. Bxc4 {[%clk 0:01:24]}  Bxd4 {[%clk 0:02:28]} 18. Rad1 {[%clk 0:01:25]}  Qc7 {[%clk 0:02:17]} 19. Bxe6 {[%clk 0:01:22]}  Rxe6 {[%clk 0:02:13]} 20. Rxd4 {[%clk 0:01:22]}  Rc8 {[%clk 0:02:13]} 21. Rfd1 {[%clk 0:01:07]}  Qe5 {[%clk 0:02:08]} 22. h3 {[%clk 0:01:05]}  Rc5 {[%clk 0:02:06]} 23. a4 {[%clk 0:01:05]}  Qf6 {[%clk 0:02:02]} 24. Rf4 {[%clk 0:00:48]}  Qe7 {[%clk 0:02:00]} 25. Qd3 {[%clk 0:00:42]}  Kg7 {[%clk 0:01:57]} 26. Qd7 {[%clk 0:00:40]}  Rc7 {[%clk 0:01:55]} 27. Qd4+ {[%clk 0:00:38]}  Kg8 {[%clk 0:01:46]} 28. Qxa7 {[%clk 0:00:39]}  Rd6 {[%clk 0:01:40]} 29. Rfd4 {[%clk 0:00:33]}  Rxd4 {[%clk 0:01:40]} 30. Qxd4 {[%clk 0:00:33]}  Rc8 {[%clk 0:01:38]} 31. Qd7 {[%clk 0:00:30]}  Qc5 {[%clk 0:01:33]} 32. Qxb7 {[%clk 0:00:29]}  Qc2 {[%clk 0:01:33]} 33. Qd7 {[%clk 0:00:26]}  Ra8 {[%clk 0:01:28]} 34. Rd4 {[%clk 0:00:09]}  Rxa4 {[%clk 0:01:27]} 35. Rxa4 {[%clk 0:00:09]}  Qc1+ {[%clk 0:01:17]} 36. Kh2 {[%clk 0:00:08]}  h5 {[%clk 0:01:15]} 37. Ra8+ {[%clk 0:00:08]}  Kg7 {[%clk 0:01:16]} 38. Qd4+ {[%clk 0:00:08]}  f6 {[%clk 0:01:13]} 39. Ra7+ {[%clk 0:00:09]} 1-0